bitfinex/quotes_BTCUSD_20241009
["timestamp","ask_amount","ask_price","bid_price","bid_amount"]
[1728497378496,0.51773546,61779.0,61777.0,0.00082]
[1728497378497,0.243369,61778.0,61777.0,0.00082]
[1728497378735,0.67187125,61778.0,61777.0,0.00082]
[1728497378992,0.67517902,61778.0,61777.0,0.00082]
[1728497379231,0.53513304,61778.0,61777.0,0.00082]
[1728497379484,0.339769,61778.0,61777.0,0.00082]
[1728497380439,0.347769,61778.0,61777.0,0.00182]
[1728497380871,0.357769,61778.0,61777.0,0.00282]
[1728497382565,0.349769,61778.0,61777.0,0.00182]
[1728497382789,0.356769,61778.0,61777.0,0.00282]
[1728497383263,0.339769,61778.0,61777.0,0.00082]
[1728497383500,0.347769,61778.0,61777.0,0.00182]
[1728497383720,0.346769,61778.0,61777.0,0.00182]
[1728497383946,0.354769,61778.0,61777.0,0.00282]
[1728497384967,0.35809146,61778.0,61777.0,0.00282]
[1728497385424,0.354769,61778.0,61777.0,0.00282]
[1728497385886,0.176869,61778.0,61777.0,0.00282]
[1728497387267,0.53922527,61778.0,61777.0,0.00282]
[1728497387535,0.54586327,61778.0,61777.0,0.00282]
[1728497387781,0.54786327,61778.0,61777.0,0.00282]
[1728497388527,0.55119078,61778.0,61777.0,0.00282]
[1728497388783,0.54919078,61778.0,61777.0,0.00282]
[1728497389269,0.67622824,61778.0,61777.0,0.00282]
[1728497391735,0.54919078,61778.0,61777.0,0.00282]
[1728497392157,0.55119078,61778.0,61777.0,0.00282]
[1728497393514,0.54919078,61778.0,61777.0,0.00282]
[1728497394221,0.55119078,61778.0,61777.0,0.00282]
[1728497394873,0.54619078,61778.0,61777.0,0.00282]
[1728497395099,0.55119078,61778.0,61777.0,0.00282]
[1728497395341,0.67119896,61778.0,61777.0,0.00282]
[1728497395997,0.8320366,61778.0,61777.0,0.00282]
[1728497396255,0.9320366,61778.0,61777.0,0.00282]
[1728497397195,0.98210488,61778.0,61777.0,0.00282]
[1728497397409,0.9240366,61778.0,61777.0,0.00182]
[1728497397629,0.98210018,61778.0,61777.0,0.00282]
[1728497397849,0.9250366,61778.0,61777.0,0.00182]
[1728497398075,0.9250366,61778.0,61777.0,0.00282]
[1728497398290,0.9360366,61778.0,61777.0,0.00282]
[1728497398732,0.97509418,61778.0,61777.0,0.00182]
[1728497398941,0.9380366,61778.0,61777.0,0.00282]
[1728497399369,0.98810466,61778.0,61777.0,0.00282]
[1728497400842,0.007,61769.0,61768.0,0.000819]
[1728497401097,0.79008691,61769.0,61768.0,0.000819]
[1728497401309,0.84017753,61769.0,61768.0,0.000819]
[1728497401602,0.79018691,61769.0,61768.0,0.000819]
[1728497402027,0.80318691,61769.0,61768.0,0.001819]
[1728497402264,0.9484606,61769.0,61768.0,0.001819]
[1728497402701,0.95179052,61769.0,61768.0,0.001819]
[1728497403145,0.95379052,61769.0,61768.0,0.001819]
[1728497403363,1.01792572,61769.0,61768.0,0.001819]
[1728497405186,0.343114,61761.0,61760.0,0.000819]
[1728497405469,0.84021791,61761.0,61760.0,0.000819]
[1728497405672,0.84354798,61761.0,61760.0,0.000819]
[1728497406330,0.85254798,61761.0,61760.0,0.000819]
[1728497407274,0.85754798,61761.0,61760.0,0.000819]
[1728497408185,0.59063554,61761.0,61760.0,0.000819]
[1728497408408,0.58730547,61761.0,61760.0,0.000819]
[1728497408641,0.59630547,61761.0,61760.0,0.000819]
[1728497409606,0.2210492,61761.0,61760.0,0.000819]
[1728497409854,0.02,61761.0,61760.0,0.34657364]
[1728497410095,0.02,61761.0,61760.0,0.62237364]
[1728497410363,0.02,61761.0,61760.0,0.81442991]
[1728497410631,0.02,61761.0,61760.0,0.62237364]
[1728497410843,0.011,61761.0,61760.0,0.62237364]
[1728497412011,0.011,61761.0,61760.0,0.49937364]
[1728497412012,0.001,61761.0,61760.0,0.49937364]
[1728497412231,0.002,61761.0,61760.0,0.49937364]
[1728497412460,0.001,61761.0,61760.0,0.49937364]
[1728497412934,0.002,61761.0,61760.0,0.49937364]
[1728497413226,0.001,61761.0,61760.0,0.49937364]
[1728497413465,0.0001,61769.0,61764.0,0.161906]
[1728497413682,0.07291125,61769.0,61765.0,0.161902]
[1728497413905,0.0001,61769.0,61765.0,0.161902]
[1728497414596,0.0001,61769.0,61762.0,0.323819]
[1728497414841,0.0001,61769.0,61765.0,0.485708]
[1728497415067,0.0001,61769.0,61765.0,0.323807]
[1728497415311,0.0001,61769.0,61765.0,0.485709]
[1728497415562,0.0001,61769.0,61768.0,0.161896]
[1728497415829,0.0001,61769.0,61766.0,0.323798]
[1728497415830,0.0001,61769.0,61766.0,0.161899]
[1728497416052,0.0001,61769.0,61764.0,0.323812]
[1728497416053,0.0031,61769.0,61765.0,0.485709]
[1728497416278,0.0001,61769.0,61766.0,0.161899]
[1728497416496,0.0011,61769.0,61766.0,0.161899]
[1728497416718,0.0001,61769.0,61766.0,0.161899]
[1728497417418,0.0001,61769.0,61766.0,0.001]
[1728497417644,0.0323873,61768.0,61766.0,0.001]
[1728497418335,0.161994,61769.0,61762.0,0.16191]
[1728497418558,0.161994,61769.0,61760.0,0.40125]
[1728497418559,0.0031,61769.0,61760.0,0.40125]
[1728497418788,0.0031,61769.0,61760.0,0.401251]
[1728497419014,0.161995,61769.0,61762.0,0.161911]
[1728497419262,0.0495769,61768.0,61762.0,0.161911]
[1728497419494,0.0485769,61768.0,61764.0,0.161906]
[1728497419768,0.0485769,61768.0,61762.0,0.161909]
[1728497420687,0.0485769,61768.0,61761.0,0.323824]
[1728497420960,0.0485769,61768.0,61763.0,0.161909]
[1728497421620,0.0485769,61768.0,61764.0,0.161906]
[1728497421848,0.003,61768.0,61764.0,0.161906]
[1728497422289,0.0001,61769.0,61765.0,0.323806]
[1728497422514,0.0001,61769.0,61768.0,0.161896]
[1728497422962,0.0001,61769.0,61768.0,0.32273364]
[1728497423970,0.0001,61769.0,61768.0,0.32373364]
[1728497424192,0.0001,61769.0,61768.0,0.001]
[1728497424419,0.0486755,61769.0,61768.0,0.001]
[1728497424642,0.0486755,61769.0,61768.0,0.162896]
[1728497424643,0.0001,61769.0,61768.0,0.162896]
[1728497426644,0.0001,61769.0,61768.0,0.49283364]
[1728497429768,0.0001,61769.0,61768.0,0.51583364]
[1728497430711,0.0001,61769.0,61768.0,0.51483364]
[1728497430963,0.0001,61769.0,61768.0,0.61983364]
[1728497430964,0.0011,61769.0,61768.0,0.61983364]
[1728497431227,0.0021,61769.0,61768.0,0.62083364]
[1728497432860,0.0011,61769.0,61768.0,0.61983364]
[1728497433310,0.0021,61769.0,61768.0,0.63383364]
[1728497433780,0.0011,61769.0,61768.0,0.63183364]
[1728497433995,0.003738,61769.0,61768.0,0.63983364]
[1728497434216,0.003738,61769.0,61768.0,0.64183364]
[1728497434439,0.003738,61769.0,61768.0,0.63983364]
[1728497435207,0.003738,61769.0,61768.0,0.64183364]
[1728497436076,0.003738,61769.0,61768.0,0.63983364]
[1728497436338,0.003738,61769.0,61768.0,0.64183364]
[1728497437252,0.001638,61778.0,61777.0,0.64822827]
[1728497437507,0.001638,61778.0,61777.0,0.80706591]
[1728497437988,0.001638,61778.0,61777.0,0.80906591]
[1728497438660,0.001638,61778.0,61777.0,0.81706591]
[1728497438661,0.002638,61778.0,61777.0,0.81706591]
[1728497438975,0.002638,61778.0,61777.0,0.81506591]
[1728497439650,0.002638,61778.0,61777.0,0.60000964]
[1728497439878,0.002638,61778.0,61777.0,0.50740964]
[1728497440119,0.002638,61778.0,61777.0,0.52140964]
[1728497440794,0.002638,61778.0,61777.0,0.50740964]
[1728497441024,0.001638,61778.0,61777.0,0.52940964]
[1728497441265,0.001638,61778.0,61777.0,0.53740964]
[1728497441512,0.001638,61778.0,61777.0,0.52940964]
[1728497441730,0.001638,61778.0,61777.0,0.53540964]
[1728497442172,0.001638,61778.0,61777.0,0.52940964]
[1728497442386,0.001638,61778.0,61777.0,0.53840964]
[1728497443503,0.001638,61778.0,61777.0,0.53140964]
[1728497443932,0.001638,61778.0,61777.0,0.53840964]
[1728497444397,0.001638,61778.0,61777.0,0.53140964]
[1728497444622,0.001638,61778.0,61777.0,0.54140964]
[1728497445578,0.001638,61778.0,61777.0,0.46470964]
[1728497449895,0.001638,61778.0,61777.0,0.20283764]
[1728497450369,0.001638,61778.0,61777.0,0.17983764]
[1728497450624,0.001638,61778.0,61777.0,0.16983764]
[1728497451043,0.001638,61778.0,61777.0,0.17083764]
[1728497451282,0.002638,61778.0,61777.0,0.18083764]
[1728497451529,0.001638,61778.0,61777.0,0.16083764]
[1728497452074,0.001638,61778.0,61777.0,0.16483764]
[1728497452332,0.20217382,61778.0,61777.0,0.004]
[1728497452578,0.255907,61778.0,61777.0,0.004]
[1728497453033,0.255907,61778.0,61777.0,0.009]
[1728497453502,0.255907,61778.0,61777.0,0.004]
[1728497453955,0.259907,61778.0,61777.0,0.004]
[1728497454193,0.323762,61774.0,61768.0,0.000819]
[1728497454416,0.161883,61773.0,61769.0,0.16083764]
[1728497454660,0.161885,61772.0,61769.0,0.16083764]
[1728497455121,0.18705627,61775.0,61769.0,0.16083764]
[1728497455357,0.48565,61773.0,61769.0,0.16083764]
[1728497455991,0.00742547,61772.0,61769.0,0.16083764]
[1728497456178,0.00742547,61772.0,61769.0,0.16183764]
[1728497456543,0.161885,61772.0,61769.0,0.16183764]
[1728497456775,0.007301,61771.0,61769.0,0.16183764]
[1728497457022,0.007301,61771.0,61769.0,0.16283764]
[1728497457251,0.007301,61771.0,61769.0,0.16183764]
[1728497457473,0.007301,61771.0,61769.0,0.16083764]
[1728497457907,0.007301,61770.0,61769.0,0.16283764]
[1728497458181,0.161887,61772.0,61769.0,0.16483764]
[1728497458379,0.00730103,61770.0,61769.0,0.16483764]
[1728497458606,0.161887,61772.0,61769.0,0.16483764]
[1728497458816,0.00730103,61770.0,61769.0,0.16483764]
[1728497459025,0.161887,61772.0,61769.0,0.16283764]
[1728497459237,0.16919103,61770.0,61769.0,0.16383764]
[1728497459462,0.4493241,61770.0,61769.0,0.003819]
[1728497459678,0.4493241,61770.0,61769.0,0.001819]
[1728497459679,0.45364726,61770.0,61769.0,0.001819]
[1728497460131,0.45364726,61770.0,61769.0,0.004819]
[1728497460360,0.53584726,61770.0,61769.0,0.004819]
[1728497460617,0.53584726,61770.0,61769.0,0.000819]
[1728497460618,0.74718498,61770.0,61769.0,0.000819]
[1728497460847,0.85118498,61770.0,61769.0,0.003819]
[1728497461284,0.89941399,61770.0,61769.0,0.003819]
[1728497461490,0.89341477,61770.0,61769.0,0.000819]
[1728497461708,0.90241477,61770.0,61769.0,0.001819]
[1728497462347,0.74137424,61770.0,61769.0,0.001819]
[1728497462580,0.74837424,61770.0,61769.0,0.002819]
[1728497463040,0.74437424,61770.0,61769.0,0.001819]
[1728497463532,0.70014445,61770.0,61769.0,0.002819]
[1728497464219,0.64984726,61770.0,61769.0,0.002819]
[1728497464454,0.64254627,61770.0,61769.0,0.002819]
[1728497464676,0.69275153,61770.0,61769.0,0.002819]
[1728497465359,0.85355814,61770.0,61769.0,0.002819]
[1728497465587,0.80335288,61770.0,61769.0,0.002819]
[1728497465854,0.64254627,61770.0,61769.0,0.002819]
[1728497466340,0.64454627,61770.0,61769.0,0.002819]
[1728497468180,0.64787618,61770.0,61769.0,0.002819]
[1728497468884,0.64587618,61770.0,61769.0,0.002819]
[1728497469119,0.64254627,61770.0,61769.0,0.002819]
[1728497470725,0.80535288,61770.0,61769.0,0.002819]
[1728497471082,0.80868295,61770.0,61769.0,0.002819]
[1728497471174,0.80668295,61770.0,61769.0,0.002819]
[1728497472324,0.80499088,61770.0,61769.0,0.002819]
[1728497473255,0.64618427,61770.0,61769.0,0.002819]
[1728497474663,0.81035198,61770.0,61769.0,0.002819]
[1728497474934,0.81035198,61770.0,61760.0,0.000819]
[1728497474935,0.63396527,61763.0,61760.0,0.000819]
[1728497475187,0.79480291,61763.0,61760.0,0.000819]
[1728497475662,0.95560952,61763.0,61760.0,0.000819]
[1728497477124,0.97360952,61763.0,61762.0,0.002819]
[1728497477379,1.02377934,61763.0,61762.0,0.002819]
[1728497483624,1.02710948,61763.0,61762.0,0.002819]
[1728497485351,1.26947301,61763.0,61762.0,0.002819]
[1728497485579,1.02710948,61763.0,61762.0,0.002819]
[1728497486530,1.06964452,61763.0,61762.0,0.002819]
[1728497486753,1.02710948,61763.0,61762.0,0.002819]
[1728497493473,0.007,61761.0,61760.0,1e-06]
[1728497493717,0.007,61761.0,61745.0,0.24236353]
[1728497493718,0.441835,61753.0,61745.0,0.24236353]
[1728497493946,0.84189873,61753.0,61745.0,0.24236353]
[1728497494218,0.84522888,61753.0,61745.0,0.24236353]
[1728497494463,1.00603549,61753.0,61738.0,0.24236353]
[1728497494966,1.07834295,61753.0,61738.0,0.24236353]
[1728497495448,1.00603549,61753.0,61738.0,0.24236353]
[1728497495920,1.00603549,61753.0,61752.0,0.001819]
[1728497495921,1.01803549,61753.0,61752.0,0.001819]
[1728497496156,1.12832826,61753.0,61752.0,0.001819]
[1728497496902,1.03203549,61753.0,61752.0,0.001819]
[1728497497400,0.16197,61740.0,61739.0,0.24236353]
[1728497497628,0.21213982,61740.0,61739.0,0.24236353]
[1728497497851,0.161987,61733.0,61732.0,0.24236353]
[1728497498136,0.34904327,61733.0,61732.0,0.24236353]
[1728497498358,0.161993,61731.0,61729.0,0.00582]
[1728497499918,0.167993,61731.0,61729.0,0.00582]
[1728497500387,0.171993,61731.0,61729.0,0.00582]
[1728497501552,0.17532315,61731.0,61729.0,0.00582]
[1728497502004,0.16932315,61731.0,61729.0,0.00582]
[1728497502259,0.30965229,61731.0,61729.0,0.00582]
[1728497502704,0.30565229,61731.0,61729.0,0.00582]
[1728497502936,0.30965229,61731.0,61729.0,0.00582]
[1728497504345,0.3599549,61731.0,61729.0,0.00582]
[1728497505565,0.60409254,61731.0,61730.0,0.00082]
[1728497506454,0.70909254,61731.0,61730.0,0.00082]
[1728497506930,0.75733712,61731.0,61730.0,0.00082]
[1728497507145,0.70509254,61731.0,61730.0,0.00082]
[1728497507638,0.79609254,61731.0,61730.0,0.00082]
[1728497508681,0.80909254,61731.0,61730.0,0.00082]
[1728497509157,0.79609254,61731.0,61730.0,0.00082]
[1728497509389,0.82409254,61731.0,61730.0,0.00082]
[1728497509619,0.81009254,61731.0,61730.0,0.00082]
[1728497510145,0.269011,61724.0,61723.0,0.014622]
[1728497510424,0.1,61687.0,61668.0,0.000819]
[1728497510741,0.1,61687.0,61665.0,0.12650007]
[1728497510742,0.0135,61670.0,61665.0,0.02731907]
[1728497510997,0.0135,61670.0,61639.0,0.1]
[1728497510998,0.005,61625.0,61600.0,0.162335]
[1728497511247,0.329478,61638.0,61601.0,0.01515552]
[1728497511248,0.005,61607.0,61601.0,0.01515552]
[1728497511522,0.18705627,61603.0,61599.0,0.234]
[1728497511765,0.005,61601.0,61585.0,0.124]
[1728497512329,0.97207709,61600.0,61597.0,0.16083764]
[1728497512594,0.97207709,61611.0,61588.0,0.0005]
[1728497512595,0.16236,61592.0,61588.0,0.0005]
[1728497512827,0.18705627,61601.0,61585.0,0.091946]
[1728497512828,0.01,61586.0,61585.0,0.091946]
[1728497513077,0.324741,61588.0,61576.0,0.00036587]
[1728497513078,0.267385,61582.0,61581.0,1e-06]
[1728497513564,0.167385,61582.0,61581.0,1e-06]
[1728497513573,0.00333015,61586.0,61581.0,1e-06]
[1728497513574,0.162382,61583.0,61581.0,1e-06]
[1728497513792,0.27071515,61582.0,61581.0,1e-06]
[1728497514017,0.005,61582.0,61581.0,1e-06]
[1728497515035,0.02545,61582.0,61581.0,1e-06]
[1728497515539,0.02545,61582.0,61579.0,0.00063538]
[1728497515540,0.02545,61582.0,61580.0,1e-06]
[1728497515785,0.03845,61582.0,61581.0,0.185387]
[1728497516070,0.03845,61582.0,61580.0,1e-06]
[1728497516277,0.02878015,61582.0,61580.0,1e-06]
[1728497516520,0.03745,61582.0,61580.0,1e-06]
[1728497516769,0.005,61581.0,61580.0,1e-06]
[1728497517026,0.02881375,61581.0,61580.0,1e-06]
[1728497517265,0.01670271,61582.0,61581.0,0.185387]
[1728497517493,0.012,61582.0,61581.0,0.185387]
[1728497517738,0.02544545,61586.0,61582.0,0.023]
[1728497517970,0.02544545,61586.0,61583.0,0.162381]
[1728497518197,0.02544545,61586.0,61585.0,0.162377]
[1728497518442,0.02544545,61586.0,61585.0,0.16083764]
[1728497518719,0.02544545,61586.0,61585.0,0.185377]
[1728497518948,0.02844545,61586.0,61583.0,0.162379]
[1728497519177,0.02844545,61586.0,61580.0,0.023001]
[1728497519178,0.02844545,61586.0,61585.0,0.34621464]
[1728497519403,0.02544545,61586.0,61585.0,0.34621464]
[1728497519643,0.005,61592.0,61589.0,0.023]
[1728497519886,0.24357965,61590.0,61589.0,0.023]
[1728497520131,0.005,61592.0,61590.0,0.023]
[1728497520375,0.09056144,61596.0,61595.0,0.16235]
[1728497520625,0.09056144,61596.0,61595.0,0.18535]
[1728497521346,0.09056144,61596.0,61595.0,0.42528764]
[1728497522848,0.11600312,61596.0,61589.0,0.162365]
[1728497523084,0.11600312,61596.0,61588.0,0.023]
[1728497523085,0.162359,61592.0,61588.0,0.023]
[1728497523320,0.162359,61592.0,61582.0,0.0791]
[1728497523321,0.005,61594.0,61587.0,0.324742]
[1728497523556,0.005,61594.0,61587.0,0.16083764]
[1728497523789,0.02544168,61596.0,61590.0,0.162363]
[1728497523790,0.005,61593.0,61590.0,0.162363]
[1728497524030,0.03044168,61596.0,61594.0,0.162353]
[1728497524279,0.005,61593.0,61582.0,0.0791]
[1728497524532,0.005,61587.0,61582.0,0.0791]
[1728497524759,0.0329735,61586.0,61582.0,0.241483]
[1728497525005,0.0329735,61586.0,61582.0,0.0791]
[1728497525247,0.02544797,61586.0,61581.0,0.000819]
[1728497525491,0.162381,61584.0,61581.0,0.000819]
[1728497525722,0.005,61585.0,61581.0,0.000819]
[1728497525723,0.167379,61585.0,61581.0,0.000819]
[1728497525953,0.005,61585.0,61583.0,0.162381]
[1728497526208,0.005,61585.0,61581.0,0.000819]
[1728497526681,0.03944797,61586.0,61585.0,0.185377]
[1728497526918,0.03944797,61586.0,61585.0,0.34621464]
[1728497528327,0.02544797,61586.0,61585.0,0.34621464]
[1728497529522,0.02644797,61586.0,61585.0,0.34621464]
[1728497529759,0.001,61586.0,61585.0,0.34621464]
[1728497530459,0.24357965,61597.0,61586.0,0.023]
[1728497530461,0.24357965,61596.0,61595.0,0.18535]
[1728497530713,0.24357965,61596.0,61595.0,0.34618764]
[1728497530979,0.005,61607.0,61600.0,0.32467]
[1728497531230,0.24357965,61611.0,61604.0,0.023]
[1728497531231,0.005,61609.0,61604.0,0.023]
[1728497531484,0.162321,61607.0,61603.0,0.162328]
[1728497531724,0.09143841,61606.0,61604.0,0.023]
[1728497531979,0.162336,61601.0,61598.0,0.023]
[1728497532210,0.162338,61600.0,61598.0,0.26657965]
[1728497532434,0.162338,61600.0,61598.0,0.023]
[1728497533116,0.08848051,61605.0,61597.0,0.239845]
[1728497533117,0.005,61603.0,61602.0,0.162332]
[1728497533360,0.005,61603.0,61602.0,0.185332]
[1728497533835,0.005,61607.0,61603.0,0.023]
[1728497534117,0.167319,61607.0,61606.0,0.023]
[1728497534358,0.162322,61606.0,61603.0,0.023]
[1728497534618,0.03044096,61607.0,61603.0,0.023]
[1728497534858,0.03044096,61607.0,61606.0,0.023]
[1728497535099,0.03044096,61607.0,61606.0,0.185321]
[1728497535363,0.03044096,61607.0,61605.0,0.023]
[1728497535558,0.03044096,61607.0,61605.0,0.185323]
[1728497535795,0.01,61606.0,61605.0,0.162324]
[1728497536057,0.005,61617.0,61605.0,0.34616164]
[1728497536314,0.005,61619.0,61617.0,0.023]
[1728497536540,0.02543795,61624.0,61617.0,0.023]
[1728497536541,0.02543795,61624.0,61619.0,0.023]
[1728497536778,0.02543795,61624.0,61623.0,0.162277]
[1728497537017,0.02543795,61624.0,61611.0,0.324615]
[1728497537018,0.00731953,61623.0,61622.0,0.185279]
[1728497537520,0.02543795,61624.0,61621.0,0.162281]
[1728497537758,0.02543795,61624.0,61622.0,0.023]
[1728497538028,0.00731977,61623.0,61619.0,0.023]
[1728497538261,0.162273,61625.0,61621.0,0.023]
[1728497538493,0.00731977,61622.0,61621.0,0.185282]
[1728497538745,0.025432,61624.0,61623.0,0.185277]
[1728497538990,0.025432,61624.0,61613.0,0.1]
[1728497538991,0.031432,61624.0,61611.0,0.1]
[1728497539248,0.162291,61618.0,61615.0,0.24357965]
[1728497539501,0.16729,61618.0,61615.0,0.24357965]
[1728497539733,0.167291,61618.0,61611.0,0.40588665]
[1728497539976,0.167291,61618.0,61611.0,0.56819465]
[1728497539977,0.00749372,61617.0,61611.0,0.56819465]
[1728497540200,0.00749372,61617.0,61604.0,0.24357965]
[1728497540450,0.00749372,61617.0,61612.0,0.162305]
[1728497540690,0.16978672,61617.0,61613.0,0.023]
[1728497540928,0.16978672,61617.0,61613.0,0.347604]
[1728497540929,0.00749372,61617.0,61613.0,0.347604]
[1728497541174,0.00749372,61617.0,61610.0,0.023]
[1728497541403,0.167291,61618.0,61613.0,0.162301]
[1728497541633,0.00749372,61616.0,61614.0,0.023]
[1728497541883,0.005,61618.0,61617.0,0.162292]
[1728497542115,0.005,61622.0,61616.0,0.023]
[1728497542353,0.005,61623.0,61621.0,0.162282]
[1728497542604,0.005,61620.0,61619.0,0.023]
[1728497543140,0.005,61620.0,61618.0,0.023]
[1728497543392,0.005,61620.0,61609.0,0.324627]
[1728497543393,0.162304,61613.0,61608.0,0.185315]
[1728497543620,0.162304,61613.0,61607.0,0.02523025]
[1728497543621,0.162303,61613.0,61612.0,0.24357965]
[1728497543876,0.162303,61613.0,61607.0,0.02523025]
[1728497543877,0.324608,61613.0,61607.0,0.02523025]
[1728497544129,0.005,61614.0,61608.0,0.16083764]
[1728497544638,0.005,61614.0,61608.0,0.44139432]
[1728497544890,0.07854687,61614.0,61608.0,0.023]
[1728497545127,0.162313,61610.0,61608.0,0.023]
[1728497545365,0.329612,61612.0,61608.0,0.023]
[1728497545661,0.00749271,61609.0,61608.0,0.023]
[1728497546140,0.005,61612.0,61608.0,0.023]
[1728497546379,0.18774027,61613.0,61608.0,0.023]
[1728497546380,0.03043627,61613.0,61608.0,0.023]
[1728497546609,0.004,61610.0,61609.0,0.185311]
[1728497546854,0.004,61610.0,61609.0,0.34615064]
[1728497547126,0.02543627,61613.0,61607.0,0.02523025]
[1728497547127,0.167316,61608.0,61607.0,0.02523025]
[1728497547378,0.21489465,61608.0,61607.0,0.02523025]
[1728497547621,0.222388,61608.0,61607.0,0.02523025]
[1728497549069,0.48822564,61608.0,61607.0,0.02523025]
[1728497549353,0.33398495,61608.0,61607.0,0.02523025]
[1728497549589,0.28380935,61608.0,61607.0,0.02523025]
[1728497549831,0.01649335,61608.0,61607.0,0.02523025]
[1728497550067,0.01649335,61608.0,61607.0,0.35163292]
[1728497550308,0.009,61608.0,61607.0,0.37138689]
[1728497550547,0.009,61608.0,61607.0,0.34615664]
[1728497551499,0.005,61617.0,61613.0,0.162302]
[1728497551749,0.005,61617.0,61608.0,0.023]
[1728497551750,0.324621,61611.0,61608.0,0.023]
[1728497551996,0.162313,61609.0,61608.0,0.023]
[1728497552240,0.005,61612.0,61606.0,0.023822]
[1728497552489,0.16997637,61609.0,61606.0,0.023822]
[1728497552733,0.00766142,61611.0,61607.0,0.162318]
[1728497553018,0.00766135,61608.0,61607.0,0.162319]
[1728497553283,0.162312,61610.0,61606.0,0.000822]
[1728497553519,0.02543799,61611.0,61609.0,0.023]
[1728497553759,0.001,61608.0,61607.0,0.185317]
[1728497554024,0.001,61608.0,61607.0,0.34615664]
[1728497555013,0.001638,61610.0,61606.0,0.000822]
[1728497555264,0.006638,61610.0,61607.0,0.16083764]
[1728497555512,0.006638,61610.0,61609.0,0.162313]
[1728497555738,0.001638,61610.0,61609.0,0.32315064]
[1728497556451,0.001638,61610.0,61609.0,0.34615064]
[1728497556957,0.001638,61610.0,61606.0,0.000822]
[1728497557202,0.001638,61610.0,61606.0,0.16165964]
[1728497557203,0.162315,61609.0,61606.0,0.16165964]
[1728497557445,0.162315,61609.0,61607.0,0.023]
[1728497557679,0.001638,61610.0,61607.0,0.023]
[1728497557909,0.16395,61610.0,61607.0,0.023]
[1728497558191,0.001638,61610.0,61607.0,0.023]
[1728497558429,0.162319,61607.0,61606.0,0.000822]
[1728497559148,0.167319,61607.0,61606.0,0.000822]
[1728497559666,0.267319,61607.0,61606.0,0.000822]
[1728497559895,0.32061071,61607.0,61606.0,0.000822]
[1728497560124,0.4790269,61607.0,61606.0,0.000822]
[1728497560357,0.4760269,61607.0,61606.0,0.000822]
[1728497560585,0.4790269,61607.0,61606.0,0.000822]
[1728497561391,0.22061071,61607.0,61606.0,0.000822]
[1728497561865,0.21761071,61607.0,61606.0,0.000822]
[1728497562100,0.167319,61607.0,61606.0,0.000822]
[1728497562330,0.173319,61607.0,61606.0,0.000822]
[1728497562562,0.26464296,61607.0,61606.0,0.000822]
[1728497562792,0.173319,61607.0,61606.0,0.000822]
[1728497563027,0.2882026,61607.0,61606.0,0.000822]
[1728497563283,0.86239861,61607.0,61606.0,0.000822]
[1728497563528,0.62781896,61607.0,61606.0,0.000822]
[1728497564248,0.68107514,61607.0,61606.0,0.000822]
[1728497564474,0.63481896,61607.0,61606.0,0.000822]
[1728497564735,0.6811002,61607.0,61606.0,0.000822]
[1728497564990,0.6721002,61607.0,61606.0,0.000822]
[1728497565220,0.68610299,61607.0,61606.0,0.000822]
[1728497565467,0.63781896,61607.0,61606.0,0.000822]
[1728497565708,0.71020323,61607.0,61606.0,0.000822]
[1728497565957,0.68610508,61607.0,61606.0,0.000822]
[1728497566205,0.51126744,61607.0,61606.0,0.000822]
[1728497566463,0.54436559,61607.0,61606.0,0.000822]
[1728497566709,0.47198132,61607.0,61606.0,0.000822]
[1728497566953,0.54436559,61607.0,61606.0,0.000822]
[1728497567703,0.56849368,61607.0,61606.0,0.000822]
[1728497568158,0.55449368,61607.0,61606.0,0.000822]
[1728497568394,0.59262178,61607.0,61606.0,0.000822]
[1728497568628,0.47198132,61607.0,61606.0,0.000822]
[1728497569395,0.45365424,61607.0,61606.0,0.000822]
[1728497569654,0.176319,61607.0,61606.0,0.000822]
[1728497569881,0.331272,61608.0,61606.0,0.023822]
[1728497569882,0.001638,61608.0,61606.0,0.023822]
[1728497570111,0.001638,61608.0,61607.0,0.023]
[1728497570352,0.001638,61608.0,61606.0,0.000822]
[1728497570609,0.001638,61608.0,61607.0,0.023]
[1728497571354,0.163954,61608.0,61607.0,0.023]
[1728497571585,0.001638,61608.0,61607.0,0.023]
[1728497571843,0.001638,61608.0,61607.0,0.185319]
[1728497572081,0.164954,61608.0,61607.0,0.023]
[1728497572316,0.164954,61608.0,61607.0,0.185319]
[1728497572317,0.002638,61608.0,61607.0,0.185319]
[1728497572799,0.002638,61608.0,61606.0,0.000822]
[1728497573062,0.002638,61608.0,61607.0,0.185319]
[1728497573370,0.002638,61608.0,61607.0,0.34940283]
[1728497573618,0.002638,61608.0,61607.0,0.44615664]
[1728497573846,0.002638,61608.0,61607.0,0.53985664]
[1728497574102,0.002638,61608.0,61607.0,0.61795664]
[1728497574366,0.001638,61608.0,61607.0,0.61995664]
[1728497574609,0.002638,61608.0,61607.0,0.61795664]
[1728497575080,0.001638,61608.0,61607.0,0.61795664]
[1728497575563,0.002638,61608.0,61607.0,0.61795664]
[1728497575804,0.002638,61608.0,61607.0,0.86153629]
[1728497576157,0.24357965,61627.0,61626.0,0.162269]
[1728497576161,0.24357965,61627.0,61626.0,0.362569]
[1728497576358,0.24357965,61627.0,61626.0,0.52340664]
[1728497576599,0.24357965,61634.0,61633.0,0.18525]
[1728497576802,0.12081136,61637.0,61633.0,0.18383764]
[1728497577008,0.005,61638.0,61636.0,0.023]
[1728497577222,0.005,61638.0,61636.0,0.324484]
[1728497577422,0.005,61638.0,61635.0,0.162244]
[1728497577621,0.005,61638.0,61634.0,0.023]
[1728497577880,0.005,61638.0,61635.0,0.162244]
[1728497578001,0.167239,61638.0,61636.0,0.023]
[1728497578226,0.167239,61638.0,61634.0,0.023]
[1728497578468,0.1876663,61638.0,61634.0,0.185245]
[1728497578710,0.007,61638.0,61637.0,0.023]